lending/lending_fUSD_20260110
["ID","MTS","AMOUNT","RATE_DAILY","PERIOD"]
[401217939,1768054242087,-3468.0,0.00017665,2]
[401217940,1768054242097,-1406.895,0.00017665,2]
[401217941,1768054242107,-1330.0,0.00017665,2]
[401217942,1768054242117,-1266.0,0.00017665,2]
[401217943,1768054242126,-505.0,0.00017665,2]
[401217944,1768054242136,-914.0,0.00017665,2]
[401217945,1768054242146,-1201.0,0.00017665,2]
[401217946,1768054242155,-4820.0,0.00017665,2]
[401217947,1768054242165,-6554.0,0.00017665,2]
[401217948,1768054242174,-1312.0,0.00017665,2]
[401217949,1768054242184,-2441.065,0.00017665,2]
[401217950,1768054242193,-582.66868607,0.00017695,2]
[401217951,1768054242203,-500.0,0.00017699,2]
[401217952,1768054242213,-402.73999143,0.00017699,2]
[401217953,1768054242223,-200.0,0.00017699,2]
[401217954,1768054242233,-201.0,0.00017699,2]
[401217955,1768054242242,-1000.0,0.000177,2]
[401217956,1768054242252,-150.0,0.00017709,2]
[401217957,1768054242263,-150.0,0.00017709,2]
[401217958,1768054242273,-150.0,0.00017709,2]
[401217959,1768054242282,-150.0,0.00017709,2]
[401217960,1768054242292,-978.91810175,0.00017731,2]
[401217961,1768054242302,-500.0,0.00017753,2]
[401217962,1768054242311,-500.0,0.00017808,2]
[401217963,1768054242321,-2441.00763,0.0001782,2]
[401217964,1768054242330,-2441.00764,0.0001782,2]
[401217965,1768054242339,-19956.0,0.0001782,2]
[401217966,1768054242348,-2441.00764,0.0001783,2]
[401217967,1768054242358,-1600.0,0.0001783,2]
[401217968,1768054242367,-1000.0,0.0001783,2]
[401217969,1768054242377,-500.0,0.00017836,2]
[401217970,1768054242387,-2000.0,0.00017856,2]
[401217971,1768054242396,-200.0,0.00017856,2]
[401217972,1768054242405,-2441.00763,0.0001786,2]
[401217973,1768054242414,-2441.00764,0.0001788,2]
[401217974,1768054242425,-1600.0,0.0001788,2]
[401217975,1768054242434,-1000.0,0.000179,2]
[401217976,1768054242444,-1740.0035,0.000179,2]
[401217977,1768054242453,-1937.6865,0.000179,2]
[401217978,1768054242462,-2586.3524,0.000179,2]
[401217979,1768054242472,-1000.0,0.000179,2]
[401217980,1768054242482,-150.52582211,0.000179,2]
[401217981,1768054242491,-150.52582207,0.000179,2]
[401217982,1768054242500,-150.52582207,0.000179,2]
[401217983,1768054242511,-150.52582207,0.000179,2]
[401217984,1768054242520,-203.68095416,0.000179,2]
[401217985,1768054242529,-150.52582207,0.000179,2]
[401217986,1768054242539,-150.52582207,0.000179,2]
[401217987,1768054242548,-150.52582207,0.000179,2]
[401217988,1768054242558,-150.52582207,0.000179,2]
[401217989,1768054242567,-150.52582207,0.000179,2]
[401217990,1768054242576,-937.28783072,0.000179,2]
[401217991,1768054242588,-150.52582207,0.000179,2]
[401217992,1768054242598,-150.52582207,0.000179,2]
[401217993,1768054242607,-1000.0,0.00017904,2]
[401217994,1768054242617,-2441.00764,0.0001791,2]
[401217995,1768054242626,-571.66383521,0.00017919,2]
[401217996,1768054242635,-1600.0,0.0001793,2]
[401217997,1768054242646,-1000.0,0.00017949,2]
[401217998,1768054242655,-574.12855637,0.0001795,2]
[401217999,1768054242665,-500.0,0.00017973,2]
[401218000,1768054242675,-500.64146005,0.00017973,2]
[401218001,1768054242684,-281.91943671,0.00017973,2]
[401218002,1768054242977,-500.0,0.00017973,2]
[401218003,1768054242987,-500.0,0.00017973,2]
[401218004,1768054242996,-500.0,0.00017973,2]
[401218005,1768054243005,-507.85664462,0.00017973,2]
[401218006,1768054243015,-500.0,0.00017973,2]
[401218007,1768054243024,-500.0,0.00017973,2]
[401218008,1768054243033,-500.0,0.00017973,2]
[401218009,1768054243043,-500.0,0.00017973,2]
[401218010,1768054243052,-500.0,0.00017973,2]
[401218011,1768054243062,-500.0,0.00017973,2]
[401218012,1768054243071,-500.0,0.00017973,2]
[401218013,1768054243080,-500.0,0.00017973,2]
[401218014,1768054243090,-500.0,0.00017973,2]
[401218015,1768054243099,-500.0,0.00017973,2]
[401218016,1768054243109,-500.0,0.00017973,2]
[401218017,1768054243119,-500.0,0.00017973,2]
[401218018,1768054243129,-500.0,0.00017973,2]
[401218019,1768054243138,-500.0,0.00017973,2]
[401218020,1768054243148,-500.0,0.00017973,2]
[401218021,1768054243159,-500.0,0.00017973,2]
[401218022,1768054243169,-500.0,0.00017973,2]
[401218023,1768054243179,-500.0,0.00017973,2]
[401218024,1768054243189,-500.0,0.00017973,2]
[401218025,1768054243198,-500.0,0.00017973,2]
[401218026,1768054243208,-500.0,0.00017973,2]
[401218027,1768054243217,-500.0,0.00017973,2]
[401218028,1768054243227,-500.0,0.00017973,2]
[401218029,1768054243237,-500.0,0.00017973,2]
[401218030,1768054243247,-500.0,0.00017973,2]
[401218031,1768054243256,-500.0,0.00017973,2]
[401218032,1768054243266,-963.77152738,0.00017973,2]
[401218033,1768054243276,-160.88728799,0.00017973,2]
[401218034,1768054243285,-178.80233764,0.00017973,2]
[401218035,1768054243296,-1600.0,0.0001798,2]
[401218036,1768054243305,-206.0,0.00017984,2]
[401218037,1768054243316,-387.13656056,0.00017993,2]
[401218038,1768054243326,-1000.0,0.00017996,2]
[401218039,1768054243335,-169.60913893,0.00017999,2]
[401218040,1768054243345,-319.60913893,0.00017999,2]
[401218041,1768054243354,-500.0,0.00017999,2]
[401218042,1768054243363,-500.0,0.00017999,2]
[401218043,1768054243373,-500.0,0.00017999,2]
[401218044,1768054243383,-500.0,0.00017999,2]
[401218045,1768054243393,-167.74923503,0.00017999,2]
[401218046,1768054243403,-500.0,0.00017999,2]
[401218047,1768054243412,-500.0,0.00017999,2]
[401218048,1768054243422,-500.0,0.00017999,2]
[401218049,1768054243431,-500.0,0.00017999,2]
[401218050,1768054243441,-500.0,0.00017999,2]
[401218051,1768054243451,-233.5887432,0.00017999,2]
[401218052,1768054243460,-1202152.4946086,0.00018,2]
[401218054,1768054243469,-1381643.95962534,0.00018,2]
[401218055,1768054243478,-184.61083841,0.00018,2]
[401218056,1768054243488,-1261.0,0.00018,2]
[401218057,1768054243497,-1261.0,0.00018,2]
[401218058,1768054243507,-1261.0,0.00018,2]
[401218059,1768054243516,-152.0,0.00018,2]
[401218060,1768054243526,-158.15753855,0.00018,2]
[401218061,1768054243535,-150.0,0.00018,2]
[401218062,1768054243544,-200.0,0.00018,2]
[401218063,1768054243554,-150.0,0.00018,2]
[401218064,1768054243563,-1000.0,0.00018,2]
[401218065,1768054243572,-1000.0,0.00018,2]
[401218066,1768054243582,-1000.0,0.00018,2]
[401218067,1768054243596,-1000.0,0.00018,2]
[401218068,1768054243605,-1000.0,0.00018,2]
[401218069,1768054243615,-1000.0,0.00018,2]
[401218070,1768054243624,-1000.0,0.00018,2]
[401218071,1768054243635,-1000.0,0.00018,2]
[401218072,1768054243645,-1000.0,0.00018,2]
[401218073,1768054243654,-1000.0,0.00018,2]
[401218074,1768054243664,-1000.0,0.00018,2]
[401218075,1768054243673,-1000.0,0.00018,2]
[401218076,1768054243682,-1000.0,0.00018,2]
[401218077,1768054243692,-1000.0,0.00018,2]
[401218078,1768054243701,-1000.0,0.00018,2]
[401218079,1768054243710,-1000.0,0.00018,2]
[401218080,1768054243720,-1000.0,0.00018,2]
[401218081,1768054243730,-1000.0,0.00018,2]
[401218082,1768054243739,-1000.0,0.00018,2]
[401218083,1768054243748,-1000.0,0.00018,2]
[401218084,1768054243757,-1000.0,0.00018,2]
[401218085,1768054243767,-1000.0,0.00018,2]
[401218086,1768054243777,-775.0,0.00018,2]
[401218087,1768054243787,-150.0,0.00018,2]
[401218088,1768054243796,-150.0,0.00018,2]
[401218089,1768054243806,-150.0,0.00018,2]
[401218090,1768054243815,-170.0,0.00018,2]
[401218091,1768054243824,-150.0,0.00018,2]
[401218092,1768054243834,-150.0,0.00018,2]
[401218093,1768054243843,-150.0,0.00018,2]
[401218094,1768054243852,-150.0,0.00018,2]
[401218095,1768054243862,-150.0,0.00018,2]
[401218096,1768054243871,-200.0,0.00018,2]
[401218097,1768054243881,-152.0,0.00018,2]
[401218098,1768054243890,-152.0,0.00018,2]
[401218099,1768054243899,-152.0,0.00018,2]
[401218100,1768054243908,-251.48,0.00018,3]
[401218101,1768054243918,-1000.0,0.00018,2]
[401218102,1768054243927,-1000.0,0.00018,2]
[401218103,1768054243936,-1000.0,0.00018,2]
[401218104,1768054243945,-1000.0,0.00018,2]
[401218105,1768054243955,-1000.0,0.00018,2]
[401218106,1768054243964,-1000.0,0.00018,2]
[401218107,1768054243973,-1000.0,0.00018,2]
[401218108,1768054243982,-452.13003118,0.00018,2]
[401218109,1768054243991,-1147.46273151,0.00018,2]
[401218110,1768054244001,-151.0,0.00018,2]
[401218111,1768054244011,-151.0,0.00018,2]
[401218112,1768054244020,-151.0,0.00018,2]
[401218113,1768054244030,-151.0,0.00018,2]
[401218114,1768054244039,-151.0,0.00018,2]
[401218115,1768054244049,-151.0,0.00018,2]
[401218116,1768054244059,-151.0,0.00018,2]
[401218117,1768054244069,-151.0,0.00018,2]
[401218118,1768054244079,-151.0,0.00018,2]
[401218119,1768054244089,-151.0,0.00018,2]
[401218120,1768054244098,-151.0,0.00018,2]
[401218121,1768054244108,-151.0,0.00018,2]
[401218122,1768054244118,-151.0,0.00018,2]
[401218123,1768054244128,-256.43419639,0.00018,2]
[401218124,1768054244138,-19956.0,0.00018,2]
[401218125,1768054244148,-152.0,0.00018,2]
[401218126,1768054244158,-152.0,0.00018,2]
[401218127,1768054244168,-152.0,0.00018,2]
[401218128,1768054244178,-151.0,0.00018,2]
[401218129,1768054244188,-2441.00763,0.00018,2]
[401218130,1768054244197,-2441.00763,0.00018,2]
[401218131,1768054244207,-2441.00764,0.00018,2]
[401218132,1768054244217,-2441.00764,0.00018,2]
[401218133,1768054244227,-1600.0,0.00018,2]
[401218134,1768054244237,-1600.0,0.00018,2]
[401218135,1768054244247,-200.0,0.00018,2]
[401218136,1768054244257,-1261.0,0.00018,2]
[401218137,1768054244267,-152.0,0.00018002,4]
[401218138,1768054244277,-3000.0,0.00018008,7]
[401218139,1768054244287,-1300.0,0.00018008,7]
[401218140,1768054244305,-1600.0,0.0001803,2]
[401218141,1768054244317,-4168.61504778,0.00018078,2]
[401218142,1768054244327,-1600.0,0.0001808,2]
[401218143,1768054244337,-600.0,0.00018082,2]
[401218144,1768054244347,-2928.86305783,0.00018083,2]
[401218145,1768054244358,-1776.13414488,0.000181,2]
[401218146,1768054244368,-2863.89,0.000181,7]
[401218147,1768054244378,-370.0,0.0001812,2]
[401218148,1768054244388,-1600.0,0.0001813,2]
[401218149,1768054244398,-152.0,0.00018166,5]
[401218150,1768054244408,-168.0,0.00018167,2]
[401218151,1768054244417,-246.0,0.00018175,2]
[401218152,1768054244427,-200.0,0.0001818,2]
[401218153,1768054244438,-19956.0,0.0001818,2]
[401218154,1768054244448,-1600.0,0.0001818,2]
[401218155,1768054244458,-272.38,0.00018187,2]
[401218156,1768054244467,-1000.0,0.000182,2]
[401218157,1768054244477,-197.03,0.00018273,2]
[401218158,1768054244487,-734.0,0.00018276,2]
[401218159,1768054244498,-734.0,0.00018277,2]
[401218160,1768054244508,-2200.0,0.00018282,7]
[401218161,1768054244518,-492.0,0.00018288,5]
[401218162,1768054244528,-166.66,0.000183,2]
[401218163,1768054244537,-1000.0,0.00018306,2]
[401218164,1768054244547,-168.0,0.00018312,2]
[401218165,1768054244557,-152.0,0.0001833,6]
[401218166,1768054244566,-734.0,0.00018336,2]
[401218167,1768054244576,-734.0,0.00018351,2]
[401218168,1768054244586,-88298.18,0.00018356,2]
[401218169,1768054244599,-226.08697858,0.00018356,2]
[401218170,1768054244609,-221.51205242,0.00018356,2]
[401218171,1768054244619,-205.37487274,0.00018356,2]
[401218172,1768054244629,-277.74846788,0.00018356,2]
[401218173,1768054244641,-152.63811974,0.00018356,2]
[401218174,1768054244651,-252.12379273,0.00018356,2]
[401218175,1768054244661,-204.4378503,0.00018356,2]
[401218176,1768054244676,-583.21576011,0.00018356,2]
[401218177,1768054244686,-241.12168418,0.00018359,2]
[401218178,1768054244696,-19956.0,0.0001836,2]
[401218179,1768054244706,-200.0,0.00018362,2]
[401218180,1768054244716,-583.21576011,0.00018375,2]
[401218181,1768054244726,-286.0,0.0001839,2]
[401218182,1768054244736,-583.21576011,0.00018393,2]
[401218183,1768054244746,-370.0,0.00018406,2]
[401218184,1768054244756,-1101.0,0.00018409,2]
[401218185,1768054244766,-583.21576011,0.00018412,2]
[401218186,1768054244776,-734.0,0.00018413,2]
[401218187,1768054244786,-583.21576011,0.00018431,2]
[401218188,1768054244795,-197.01,0.00018436,2]
[401218189,1768054244804,-583.21576011,0.00018449,2]
[401218190,1768054244814,-583.21576011,0.00018468,2]
[401218191,1768054244823,-583.21576011,0.00018487,2]
[401218192,1768054244833,-152.0,0.00018494,7]
[401218193,1768054244842,-151.0,0.00018496,2]
[401218194,1768054244852,-346.92554585,0.00018496,2]
[401218195,1768054244862,-666.72878,0.00018496,2]
[401218196,1768054244871,-998.0,0.00018497,2]
[401218197,1768054244881,-595.37131296,0.00018498,2]
[401218198,1768054244891,-5000.0,0.000185,2]
[401218199,1768054244901,-306.0,0.000185,2]
[401218200,1768054244911,-200.0,0.000185,2]
[401218201,1768054244921,-300.0,0.000185,2]
[401218202,1768054244932,-979.0,0.000185,2]
[401218203,1768054244942,-583.21576011,0.00018505,2]
[401218204,1768054244952,-168.0,0.00018517,2]
[401218205,1768054244962,-1000.0,0.00018521,2]
[401218206,1768054244972,-1000.0,0.00018521,2]
[401218207,1768054244982,-1000.0,0.00018521,2]
[401218208,1768054244993,-354.19330389,0.00018521,2]
[401218209,1768054245004,-1000.0,0.00018521,2]
[401218210,1768054245014,-1000.0,0.00018521,2]
[401218211,1768054245024,-1000.0,0.00018521,2]
[401218212,1768054245039,-1000.0,0.00018521,2]
[401218213,1768054245050,-1000.0,0.00018521,2]
[401218214,1768054245060,-1000.0,0.00018521,2]
[401218215,1768054245070,-880.05360747,0.00018521,2]
[401218216,1768054245081,-1000.0,0.00018521,2]
[401218217,1768054245091,-1000.0,0.00018521,2]
[401218218,1768054245101,-1000.0,0.00018521,2]
[401218219,1768054245112,-1000.0,0.00018521,2]
[401218220,1768054245122,-671.83605725,0.00018521,2]
[401218221,1768054245132,-1000.0,0.00018521,2]
[401218222,1768054245142,-1000.0,0.00018521,2]
[401218223,1768054245153,-1000.0,0.00018521,2]
[401218224,1768054245163,-1000.0,0.00018521,2]
[401218225,1768054245173,-1000.0,0.00018521,2]
[401218226,1768054245183,-1000.0,0.00018521,2]
[401218227,1768054245193,-1132.76984978,0.00018521,2]
[401218228,1768054245203,-1000.0,0.00018521,2]
[401218229,1768054245213,-1000.0,0.00018521,2]
[401218230,1768054245223,-1000.0,0.00018521,2]
[401218231,1768054245232,-583.21576011,0.00018524,2]
[401218232,1768054245243,-19956.0,0.0001854,2]
[401218233,1768054245252,-583.21576011,0.00018542,2]
[401218234,1768054245262,-200.0,0.00018545,2]
[401218235,1768054245272,-583.21576011,0.00018561,2]
[401218236,1768054245281,-583.21576011,0.0001858,2]
[401218237,1768054245291,-370.0,0.00018588,2]
[401218238,1768054245300,-159.18,0.00018596,2]
[401218239,1768054245311,-583.21576011,0.00018598,2]
[401218240,1768054245320,-168.13,0.00018613,2]
[401218241,1768054245330,-583.21576011,0.00018617,2]
[401218242,1768054245340,-665.24,0.0001863,2]
[401218243,1768054245349,-583.21576011,0.00018636,2]
[401218244,1768054245359,-583.21576011,0.00018654,2]
[401218245,1768054245369,-152.0,0.00018658,8]
[401218246,1768054245379,-2928.86305783,0.00018672,2]
[401218247,1768054245394,-583.21576011,0.00018673,2]
[401218248,1768054245403,-168.0,0.00018682,2]
[401218249,1768054245414,-583.21576011,0.00018691,2]
[401218250,1768054245424,-583.21576011,0.0001871,2]
[401218251,1768054245434,-197.03,0.00018725,2]
[401218252,1768054245444,-583.21576011,0.00018729,2]
[401218253,1768054245454,-1006.5165,0.0001873,2]
[401218254,1768054245464,-200.0,0.00018731,2]
[401218255,1768054245474,-583.21576011,0.00018747,2]
[401218256,1768054245484,-583.21576011,0.00018766,2]
[401218257,1768054245493,-583.21576011,0.00018785,2]
[401218258,1768054245503,-151.16,0.000188,2]
[401218259,1768054245514,-151.16,0.000188,2]
[401218260,1768054245524,-151.16,0.000188,2]
[401218261,1768054245534,-151.16,0.000188,2]
[401218262,1768054245544,-151.16,0.000188,2]
[401218263,1768054245555,-151.16,0.000188,2]
[401218264,1768054245565,-151.16,0.000188,2]
[401218265,1768054245576,-151.16,0.000188,2]
[401218266,1768054245585,-151.16,0.000188,2]
[401218267,1768054245599,-151.16,0.000188,2]
[401218268,1768054245609,-151.16,0.000188,2]
[401218269,1768054245619,-151.16,0.000188,2]
[401218270,1768054245630,-151.16,0.000188,2]
[401218271,1768054245641,-151.16,0.000188,2]
[401218272,1768054245651,-151.16,0.000188,2]
[401218273,1768054245661,-151.16,0.000188,2]
[401218274,1768054245671,-151.16,0.000188,2]
[401218275,1768054245681,-151.16,0.000188,2]
[401218276,1768054245691,-151.16,0.000188,2]
[401218277,1768054245702,-151.16,0.000188,2]
[401218278,1768054245713,-151.16,0.000188,2]
[401218279,1768054245723,-151.16,0.000188,2]
[401218280,1768054245733,-151.16,0.000188,2]
[401218281,1768054245743,-151.16,0.000188,2]
[401218282,1768054245756,-151.16,0.000188,2]
[401218283,1768054245766,-151.16,0.000188,2]
[401218284,1768054245776,-151.16,0.000188,2]
[401218285,1768054245786,-151.16,0.000188,2]
[401218286,1768054245796,-151.16,0.000188,2]
[401218288,1768054245806,-151.16,0.000188,2]
[401218289,1768054245815,-151.16,0.000188,2]
[401218290,1768054245825,-151.16,0.000188,2]
[401218291,1768054245835,-151.16,0.000188,2]
[401218292,1768054245846,-151.16,0.000188,2]
[401218293,1768054245856,-151.16,0.000188,2]
[401218294,1768054245866,-151.16,0.000188,2]
[401218295,1768054245876,-151.16,0.000188,2]
[401218296,1768054245886,-151.16,0.000188,2]
[401218297,1768054245896,-151.16,0.000188,2]
[401218298,1768054245906,-151.16,0.000188,2]
[401218299,1768054245917,-151.16,0.000188,2]
[401218300,1768054245928,-151.16,0.000188,2]
[401218301,1768054245938,-151.16,0.000188,2]
[401218302,1768054245948,-168.0,0.000188,2]
[401218303,1768054245962,-583.21576011,0.00018803,2]
[401218304,1768054245972,-152.0,0.00018822,9]
[401218305,1768054245982,-583.21576011,0.00018822,2]
[401218306,1768054245992,-583.21576011,0.0001884,2]
[401218307,1768054246001,-168.0,0.00018857,2]
[401218308,1768054246011,-583.21576011,0.00018859,2]
[401218309,1768054246021,-583.21576011,0.00018878,2]
[401218310,1768054246031,-2222.16,0.00018885,7]
[401218311,1768054246040,-2222.16,0.00018885,7]
[401218312,1768054246050,-2222.16,0.00018885,7]
[401218313,1768054246060,-2222.16,0.00018885,7]
[401218314,1768054246071,-583.21576011,0.00018896,2]
[401218315,1768054246081,-30182.0501617,0.000189,3]
[401218316,1768054246091,-10000.0,0.000189,2]
[401218317,1768054246102,-161.78022298,0.000189,2]
[401218318,1768054246112,-583.21576011,0.00018915,2]
[401218319,1768054246122,-159.16121496,0.00018928,2]
[401218320,1768054246133,-583.21576011,0.00018934,2]
[401218321,1768054246144,-583.21576011,0.00018952,2]
[401218322,1768054246156,-937.28783071,0.0001896,2]
[401218323,1768054246166,-583.21576011,0.00018971,2]
[401218324,1768054246176,-163.8798894,0.00018973,2]
[401218325,1768054246185,-152.0,0.00018986,10]
[401218326,1768054246196,-583.21576011,0.00018989,2]
[401218327,1768054246206,-7340.27322277,0.00019,2]
[401218328,1768054246216,-7509.10314678,0.00019,2]
[401218329,1768054246225,-5159.37775769,0.00019,2]
[401218330,1768054246235,-5000.0,0.00019,2]
[401218331,1768054246245,-83586.6611238,0.00019,2]
[401218332,1768054246255,-83586.6611238,0.00019,2]
[401218333,1768054246265,-780.90435495,0.00019,2]
[401218334,1768054246275,-151.0,0.00019,2]
[401218335,1768054246285,-2300.0594404,0.00019,2]
[401218336,1768054246295,-300.0,0.00019,2]
[401218337,1768054246305,-583.21576011,0.00019008,2]
[401218338,1768054246315,-357.62033984,0.0001901,7]
[401218339,1768054246325,-166.66,0.00019025,2]
[401218340,1768054246336,-583.21576011,0.00019027,2]
[401218341,1768054246347,-583.21576011,0.00019045,2]
[401218342,1768054246357,-168.0,0.00019046,2]
[401218343,1768054246367,-617.40005154,0.00019046,2]
[401218344,1768054246377,-583.21576011,0.00019064,2]
[401218345,1768054246387,-1500.0,0.00019068,2]
[401218346,1768054246397,-1500.0,0.00019068,2]
[401218347,1768054246407,-1500.0,0.00019068,2]
[401218348,1768054246417,-631.20041978,0.00019068,2]
[401218349,1768054246427,-509.56002599,0.00019068,2]
[401218350,1768054246437,-1111.81919763,0.00019068,2]
[401218351,1768054246447,-1500.0,0.00019068,2]
[401218352,1768054246457,-502.96572924,0.00019068,2]
[401218353,1768054246466,-505.96278656,0.00019068,2]
[401218354,1768054246476,-1500.0,0.00019068,2]
[401218355,1768054246486,-1500.0,0.00019068,2]
[401218356,1768054246496,-1500.0,0.00019068,2]
[401218357,1768054246506,-451.37665758,0.00019068,2]
[401218358,1768054246516,-514.63020767,0.00019068,2]
[401218359,1768054246535,-1500.0,0.00019068,2]
[401218360,1768054246546,-1500.0,0.00019068,2]
[401218361,1768054246556,-1500.0,0.00019068,2]
[401218362,1768054246566,-927.49003768,0.00019068,2]
[401218363,1768054246576,-1500.0,0.00019068,2]
[401218364,1768054246586,-1500.0,0.00019068,2]
[401218365,1768054246598,-1500.0,0.00019068,2]
[401218366,1768054246608,-1500.0,0.00019068,2]
[401218367,1768054246618,-1500.0,0.00019068,2]
[401218368,1768054246628,-583.21576011,0.00019083,2]
[401218369,1768054246639,-800.0,0.00019097,2]
[401218370,1768054246649,-800.0,0.00019097,2]
[401218371,1768054246659,-805.0,0.00019097,2]
[401218372,1768054246670,-800.0,0.00019097,2]
[401218373,1768054246680,-800.0,0.00019097,2]
[401218375,1768054246690,-173.0,0.00019097,2]
[401218376,1768054246699,-800.0,0.00019097,2]
[401218377,1768054246709,-800.0,0.00019097,2]
[401218378,1768054246719,-800.0,0.00019097,2]
[401218379,1768054246728,-800.0,0.00019097,2]
[401218380,1768054246738,-800.0,0.00019097,2]
[401218381,1768054246747,-434.0,0.00019097,2]
[401218383,1768054246757,-800.0,0.00019097,2]
[401218384,1768054246767,-800.0,0.00019097,2]
[401218385,1768054246777,-200.0,0.00019097,2]
[401218386,1768054246787,-200.0,0.00019097,2]
[401218387,1768054246797,-800.0,0.00019097,2]
[401218388,1768054246808,-800.0,0.00019097,2]
[401218389,1768054246817,-200.0,0.00019097,2]
[401218390,1768054246827,-200.0,0.00019097,2]
[401218391,1768054246838,-200.0,0.00019097,2]
[401218392,1768054246847,-751.0,0.00019097,2]
[401218393,1768054246858,-200.0,0.00019097,2]
[401218394,1768054246868,-200.0,0.00019097,2]
[401218395,1768054246878,-200.0,0.00019097,2]
[401218396,1768054246887,-200.0,0.00019097,2]
[401218397,1768054246899,-200.0,0.00019097,2]
[401218398,1768054246909,-800.0,0.00019097,2]
[401218399,1768054246920,-800.0,0.00019097,2]
[401218400,1768054246929,-200.0,0.00019097,2]
[401218401,1768054246939,-200.0,0.00019097,2]
[401218402,1768054246948,-200.0,0.00019097,2]
[401218403,1768054246958,-200.0,0.00019097,2]
[401218404,1768054246967,-200.0,0.00019097,2]
[401218405,1768054246977,-200.0,0.00019097,2]
[401218406,1768054246987,-200.0,0.00019097,2]
[401218407,1768054246997,-200.0,0.00019097,2]
[401218408,1768054247007,-200.0,0.00019097,2]
[401218409,1768054247018,-800.0,0.00019097,2]
[401218410,1768054247028,-200.0,0.00019097,2]
[401218411,1768054247039,-200.0,0.00019097,2]
[401218412,1768054247050,-200.0,0.00019097,2]
[401218413,1768054247060,-200.0,0.00019097,2]
[401218414,1768054247071,-200.0,0.00019097,2]
[401218415,1768054247082,-200.0,0.00019097,2]
[401218416,1768054247092,-200.0,0.00019097,2]
[401218417,1768054247433,-200.0,0.00019097,2]
[401218418,1768054247443,-200.0,0.00019097,2]
[401218419,1768054247452,-200.0,0.00019097,2]
[401218420,1768054247462,-200.0,0.00019097,2]
[401218421,1768054247471,-200.0,0.00019097,2]
[401218422,1768054247480,-200.0,0.00019097,2]
[401218423,1768054247490,-800.0,0.00019097,2]
[401218424,1768054247499,-800.0,0.00019097,2]
[401218425,1768054247509,-800.0,0.00019097,2]
[401218426,1768054247518,-800.0,0.00019097,2]
[401218427,1768054247531,-800.0,0.00019097,2]
[401218428,1768054247541,-800.0,0.00019097,2]
[401218429,1768054247551,-200.0,0.00019097,2]
[401218430,1768054247561,-200.0,0.00019097,2]
[401218431,1768054247571,-200.0,0.00019097,2]
[401218432,1768054247580,-800.0,0.00019097,2]
[401218433,1768054247589,-800.0,0.00019097,2]
[401218434,1768054247602,-200.0,0.00019097,2]
[401218435,1768054247612,-583.21576011,0.00019101,2]
[401218436,1768054247621,-3000.0,0.00019104,7]
[401218437,1768054247630,-1300.0,0.00019104,7]
[401218438,1768054247641,-583.21576011,0.0001912,2]
[401218439,1768054247652,-583.21576011,0.00019138,2]
[401218440,1768054247661,-152.0,0.00019149,11]
[401218441,1768054247671,-583.21576011,0.00019157,2]
[401218442,1768054247681,-2222.16,0.00019159,7]